[Event "Titled Tuesday Blitz June 6 Early 2023"]
[White "zsizsi99"]
[Black "MKlose11"]
[WhiteElo "2435"]
[BlackElo "2554"]
[Result "0-1"]
[Round "7"]
[TimeControl "180+2"]
[Date "2023.06.06"]
[WhiteClock "0:00:03"]
[BlackClock "0:00:40"]
[Board "71"]

1. e4 {[%clk 0:03:00]}  e6 {[%clk 0:03:00]} 2. d4 {[%clk 0:03:00]}  d5 {[%clk 0:03:00]} 3. Nd2 {[%clk 0:02:58]}  Be7 {[%clk 0:02:57]} 4. c3 {[%clk 0:02:56]}  c5 {[%clk 0:02:56]} 5. dxc5 {[%clk 0:02:56]}  dxe4 {[%clk 0:02:55]} 6. Qg4 {[%clk 0:02:46]}  Nf6 {[%clk 0:02:47]} 7. Qxg7 {[%clk 0:02:30]}  Rg8 {[%clk 0:02:47]} 8. Qh6 {[%clk 0:02:30]}  Bxc5 {[%clk 0:02:47]} 9. h3 {[%clk 0:02:04]}  Nc6 {[%clk 0:02:41]} 10. Nb3 {[%clk 0:01:35]}  Be7 {[%clk 0:02:33]} 11. Qd2 {[%clk 0:01:22]}  Qc7 {[%clk 0:02:14]} 12. Ne2 {[%clk 0:01:14]}  Bd7 {[%clk 0:02:11]} 13. Ned4 {[%clk 0:01:12]}  Nxd4 {[%clk 0:02:06]} 14. Qxd4 {[%clk 0:01:10]}  a6 {[%clk 0:01:58]} 15. Be3 {[%clk 0:01:07]}  Nd5 {[%clk 0:01:48]} 16. Qxe4 {[%clk 0:01:01]}  Bc6 {[%clk 0:01:42]} 17. Qxh7 {[%clk 0:00:58]}  O-O-O {[%clk 0:01:41]} 18. O-O-O {[%clk 0:00:54]}  Nxe3 {[%clk 0:01:38]} 19. fxe3 {[%clk 0:00:49]}  Rxd1+ {[%clk 0:01:31]} 20. Kxd1 {[%clk 0:00:49]}  Rd8+ {[%clk 0:01:31]} 21. Kc2 {[%clk 0:00:26]}  Qg3 {[%clk 0:01:22]} 22. Qxf7 {[%clk 0:00:24]}  Be4+ {[%clk 0:01:21]} 23. Bd3 {[%clk 0:00:20]}  Qxg2+ {[%clk 0:01:13]} 24. Nd2 {[%clk 0:00:18]}  Bxd3+ {[%clk 0:01:12]} 25. Kb3 {[%clk 0:00:19]}  Qxh1 {[%clk 0:01:05]} 26. Qxe6+ {[%clk 0:00:19]}  Rd7 {[%clk 0:01:01]} 27. c4 {[%clk 0:00:17]}  Qc6 {[%clk 0:00:58]} 28. Qg8+ {[%clk 0:00:17]}  Rd8 {[%clk 0:00:56]} 29. Qg4+ {[%clk 0:00:16]}  Kb8 {[%clk 0:00:55]} 30. a3 {[%clk 0:00:15]}  Ka8 {[%clk 0:00:55]} 31. h4 {[%clk 0:00:14]}  b5 {[%clk 0:00:54]} 32. cxb5 {[%clk 0:00:12]}  Qd5+ {[%clk 0:00:54]} 33. Kc3 {[%clk 0:00:12]}  Bf6+ {[%clk 0:00:50]} 34. Kb4 {[%clk 0:00:11]}  Be7+ {[%clk 0:00:44]} 35. Kc3 {[%clk 0:00:10]}  Bxb5 {[%clk 0:00:43]} 36. Ne4 {[%clk 0:00:03]}  Qd3# {[%clk 0:00:40]} 0-1


[Site "https://www.chess.com"]

[Event "Titled Tuesday Blitz June 6 Early 2023"]
[White "Radzhabov, Rodion"]
[Black "Mrithyunjay Mahadevan"]
[WhiteFideId "884715"]
[BlackFideId "45003521"]
[WhiteElo "2174"]
[BlackElo "1626"]
[Result "1-0"]
[Round "7"]
[TimeControl "180+2"]
[Date "2023.06.06"]
[WhiteClock "0:00:21"]
[BlackClock "0:00:21"]
[Board "74"]

1. e4 {[%clk 0:03:00]}  c5 {[%clk 0:02:56]} 2. Nf3 {[%clk 0:03:00]}  d6 {[%clk 0:02:56]} 3. d4 {[%clk 0:03:00]}  cxd4 {[%clk 0:02:57]} 4. Qxd4 {[%clk 0:03:00]}  Nc6 {[%clk 0:02:55]} 5. Bb5 {[%clk 0:03:00]}  a6 {[%clk 0:02:55]} 6. Bxc6+ {[%clk 0:03:00]}  bxc6 {[%clk 0:02:56]} 7. c4 {[%clk 0:03:01]}  e5 {[%clk 0:02:56]} 8. Qd3 {[%clk 0:03:01]}  Nf6 {[%clk 0:02:57]} 9. Nc3 {[%clk 0:03:00]}  Be7 {[%clk 0:02:56]} 10. h3 {[%clk 0:03:00]}  O-O {[%clk 0:02:56]} 11. O-O {[%clk 0:03:01]}  h6 {[%clk 0:02:55]} 12. Rd1 {[%clk 0:03:01]}  Qc7 {[%clk 0:02:51]} 13. b3 {[%clk 0:03:01]}  Be6 {[%clk 0:02:51]} 14. Bb2 {[%clk 0:02:56]}  Rfd8 {[%clk 0:02:50]} 15. Rac1 {[%clk 0:02:56]}  Rac8 {[%clk 0:02:49]} 16. Nd5 {[%clk 0:02:42]}  cxd5 {[%clk 0:02:41]} 17. cxd5 {[%clk 0:02:43]}  Qb7 {[%clk 0:02:41]} 18. dxe6 {[%clk 0:02:43]}  fxe6 {[%clk 0:02:42]} 19. Nd2 {[%clk 0:02:33]}  Nd7 {[%clk 0:02:36]} 20. Qg3 {[%clk 0:02:23]}  Nc5 {[%clk 0:02:33]} 21. Qg4 {[%clk 0:02:21]}  Bg5 {[%clk 0:02:31]} 22. Rc4 {[%clk 0:01:56]}  Qf7 {[%clk 0:02:13]} 23. Nf3 {[%clk 0:01:49]}  Bf6 {[%clk 0:02:04]} 24. Rdc1 {[%clk 0:01:42]}  Qd7 {[%clk 0:02:00]} 25. Bxe5 {[%clk 0:01:30]}  Nd3 {[%clk 0:01:42]} 26. Rxc8 {[%clk 0:01:22]}  Nxe5 {[%clk 0:01:25]} 27. Rxd8+ {[%clk 0:01:20]}  Bxd8 {[%clk 0:01:25]} 28. Nxe5 {[%clk 0:01:19]}  dxe5 {[%clk 0:01:26]} 29. Rd1 {[%clk 0:01:17]}  Qc8 {[%clk 0:01:26]} 30. Rd6 {[%clk 0:01:14]}  Kf7 {[%clk 0:01:23]} 31. Qf3+ {[%clk 0:01:10]}  Ke7 {[%clk 0:01:22]} 32. Rd1 {[%clk 0:01:07]}  Bb6 {[%clk 0:01:18]} 33. Qd3 {[%clk 0:01:00]}  Qc5 {[%clk 0:01:09]} 34. Rd2 {[%clk 0:00:51]}  Qc1+ {[%clk 0:01:05]} 35. Kh2 {[%clk 0:00:50]}  Bd4 {[%clk 0:01:04]} 36. Rc2 {[%clk 0:00:47]}  Qf4+ {[%clk 0:01:01]} 37. g3 {[%clk 0:00:47]}  Qf8 {[%clk 0:00:51]} 38. Kg2 {[%clk 0:00:47]}  Qa8 {[%clk 0:00:46]} 39. Rc7+ {[%clk 0:00:47]}  Kd6 {[%clk 0:00:41]} 40. Rxg7 {[%clk 0:00:44]}  a5 {[%clk 0:00:41]} 41. Qc2 {[%clk 0:00:37]}  Bc5 {[%clk 0:00:35]} 42. Rf7 {[%clk 0:00:29]}  Qc6 {[%clk 0:00:30]} 43. Rf3 {[%clk 0:00:27]}  Qb5 {[%clk 0:00:22]} 44. Qd3+ {[%clk 0:00:26]}  Qxd3 {[%clk 0:00:22]} 45. Rxd3+ {[%clk 0:00:27]}  Bd4 {[%clk 0:00:22]} 46. f4 {[%clk 0:00:27]}  Kc5 {[%clk 0:00:22]} 47. f5 {[%clk 0:00:27]}  exf5 {[%clk 0:00:21]} 48. exf5 {[%clk 0:00:28]}  Kd6 {[%clk 0:00:20]} 49. g4 {[%clk 0:00:23]}  Ke7 {[%clk 0:00:21]} 50. Rxd4 {[%clk 0:00:21]}  exd4 {[%clk 0:00:21]} 51. Kf3 {[%clk 0:00:21]} 1-0


[Site "https://www.chess.com"]

[Event "Titled Tuesday Blitz June 6 Early 2023"]
[White "Ljukin, Sergei"]
[Black "Goryachkina, Aleksandra"]
[WhiteFideId "14102200"]
[BlackFideId "4147103"]
[WhiteElo "2312"]
[BlackElo "2471"]
[Result "1/2-1/2"]
[Round "7"]
[TimeControl "180+2"]
[Date "2023.06.06"]
[WhiteClock "0:00:07"]
[BlackClock "0:00:08"]
[Board "75"]

1. e4 {[%clk 0:02:52]}  c6 {[%clk 0:02:59]} 2. d4 {[%clk 0:02:51]}  d5 {[%clk 0:02:59]} 3. e5 {[%clk 0:02:51]}  Bf5 {[%clk 0:02:58]} 4. Nd2 {[%clk 0:02:51]}  e6 {[%clk 0:02:57]} 5. Nb3 {[%clk 0:02:51]}  Nd7 {[%clk 0:02:53]} 6. Nf3 {[%clk 0:02:51]}  a6 {[%clk 0:02:51]} 7. Be2 {[%clk 0:02:51]}  c5 {[%clk 0:02:51]} 8. dxc5 {[%clk 0:02:51]}  Bxc5 {[%clk 0:02:51]} 9. Nxc5 {[%clk 0:02:50]}  Nxc5 {[%clk 0:02:51]} 10. O-O {[%clk 0:02:44]}  Ne7 {[%clk 0:02:49]} 11. Nd4 {[%clk 0:02:37]}  Bg6 {[%clk 0:02:46]} 12. Be3 {[%clk 0:02:32]}  Rc8 {[%clk 0:02:46]} 13. c3 {[%clk 0:02:32]}  O-O {[%clk 0:02:45]} 14. f4 {[%clk 0:02:32]}  b5 {[%clk 0:02:44]} 15. Kh1 {[%clk 0:02:22]}  Be4 {[%clk 0:02:42]} 16. Qe1 {[%clk 0:02:01]}  Nf5 {[%clk 0:02:34]} 17. Bg1 {[%clk 0:01:55]}  Qd7 {[%clk 0:02:06]} 18. Qd2 {[%clk 0:01:52]}  Rfd8 {[%clk 0:02:04]} 19. Qe1 {[%clk 0:01:31]}  h6 {[%clk 0:02:04]} 20. Rd1 {[%clk 0:01:25]}  Qb7 {[%clk 0:01:59]} 21. a3 {[%clk 0:01:19]}  Na4 {[%clk 0:01:58]} 22. Qd2 {[%clk 0:01:17]}  Nb6 {[%clk 0:01:57]} 23. b4 {[%clk 0:01:08]}  Nc4 {[%clk 0:01:53]} 24. Qc1 {[%clk 0:01:07]}  a5 {[%clk 0:01:37]} 25. Bf3 {[%clk 0:01:07]}  Bxf3 {[%clk 0:01:11]} 26. Rxf3 {[%clk 0:01:06]}  axb4 {[%clk 0:01:05]} 27. Nxf5 {[%clk 0:01:03]}  exf5 {[%clk 0:01:05]} 28. axb4 {[%clk 0:01:04]}  Ra8 {[%clk 0:01:02]} 29. Qc2 {[%clk 0:00:59]}  Qd7 {[%clk 0:00:58]} 30. Bd4 {[%clk 0:00:57]}  Qe6 {[%clk 0:00:58]} 31. Rff1 {[%clk 0:00:54]}  Ra6 {[%clk 0:00:57]} 32. Ra1 {[%clk 0:00:54]}  Rda8 {[%clk 0:00:57]} 33. Rxa6 {[%clk 0:00:52]}  Rxa6 {[%clk 0:00:57]} 34. h3 {[%clk 0:00:52]}  Ra8 {[%clk 0:00:52]} 35. Qe2 {[%clk 0:00:51]}  Nd6 {[%clk 0:00:41]} 36. Rf3 {[%clk 0:00:40]}  Rb8 {[%clk 0:00:36]} 37. Qa2 {[%clk 0:00:38]}  Ne4 {[%clk 0:00:35]} 38. Kh2 {[%clk 0:00:36]}  Qc6 {[%clk 0:00:33]} 39. Rf1 {[%clk 0:00:31]}  Ra8 {[%clk 0:00:33]} 40. Qb2 {[%clk 0:00:30]}  Qc4 {[%clk 0:00:33]} 41. Ra1 {[%clk 0:00:24]}  Rc8 {[%clk 0:00:27]} 42. e6 {[%clk 0:00:19]}  fxe6 {[%clk 0:00:26]} 43. Ra7 {[%clk 0:00:18]}  Rc7 {[%clk 0:00:27]} 44. Rxc7 {[%clk 0:00:11]}  Qxc7 {[%clk 0:00:26]} 45. Be5 {[%clk 0:00:12]}  Qb7 {[%clk 0:00:21]} 46. Qa2 {[%clk 0:00:09]}  Kh7 {[%clk 0:00:21]} 47. Qa5 {[%clk 0:00:09]}  Qd7 {[%clk 0:00:15]} 48. Qa8 {[%clk 0:00:08]}  Nd2 {[%clk 0:00:12]} 49. Qb8 {[%clk 0:00:07]}  Nc4 {[%clk 0:00:11]} 50. Bd4 {[%clk 0:00:07]}  Nd6 {[%clk 0:00:10]} 51. Qb6 {[%clk 0:00:06]}  Nc4 {[%clk 0:00:09]} 52. Qc5 {[%clk 0:00:06]}  Nd6 {[%clk 0:00:09]} 53. Qb6 {[%clk 0:00:06]}  Nc4 {[%clk 0:00:08]} 54. Qc5 {[%clk 0:00:06]}  Nd6 {[%clk 0:00:08]} 55. Qb6 {[%clk 0:00:07]} 1/2-1/2


[Site "https://www.chess.com"]

[Event "Titled Tuesday Blitz June 6 Early 2023"]
[White "Domingo Nunez, Ruben"]
[Black "Ismayil, Malak"]
[WhiteFideId "22245570"]
[BlackFideId "13412604"]
[WhiteElo "2404"]
[BlackElo "1868"]
[Result "0-1"]
[Round "7"]
[TimeControl "180+2"]
[Date "2023.06.06"]
[WhiteClock "0:00:06"]
[BlackClock "0:00:15"]
[Board "76"]

1. d4 {[%clk 0:03:00]}  Nf6 {[%clk 0:02:54]} 2. Nf3 {[%clk 0:02:59]}  e6 {[%clk 0:02:50]} 3. g3 {[%clk 0:02:58]}  d5 {[%clk 0:02:45]} 4. Bg2 {[%clk 0:02:58]}  Be7 {[%clk 0:02:45]} 5. O-O {[%clk 0:02:59]}  O-O {[%clk 0:02:46]} 6. c4 {[%clk 0:02:51]}  dxc4 {[%clk 0:02:47]} 7. Qc2 {[%clk 0:02:50]}  a6 {[%clk 0:02:47]} 8. a4 {[%clk 0:02:50]}  Bd7 {[%clk 0:02:46]} 9. Nbd2 {[%clk 0:02:48]}  Bc6 {[%clk 0:02:44]} 10. Nxc4 {[%clk 0:02:47]}  Nbd7 {[%clk 0:02:44]} 11. Rd1 {[%clk 0:02:46]}  Rc8 {[%clk 0:02:38]} 12. Bf4 {[%clk 0:02:10]}  Nb6 {[%clk 0:02:34]} 13. Na5 {[%clk 0:01:52]}  Be4 {[%clk 0:02:32]} 14. Qb3 {[%clk 0:01:52]}  Bd5 {[%clk 0:02:26]} 15. Qc2 {[%clk 0:01:46]}  Be4 {[%clk 0:02:22]} 16. Qd2 {[%clk 0:01:45]}  Bd6 {[%clk 0:02:11]} 17. Be5 {[%clk 0:01:28]}  Nfd7 {[%clk 0:02:02]} 18. Qf4 {[%clk 0:01:24]}  Bxe5 {[%clk 0:01:30]} 19. dxe5 {[%clk 0:01:17]}  Bd5 {[%clk 0:01:27]} 20. e4 {[%clk 0:01:13]}  Bc6 {[%clk 0:01:26]} 21. Nxc6 {[%clk 0:00:59]}  bxc6 {[%clk 0:01:27]} 22. Nd4 {[%clk 0:01:00]}  c5 {[%clk 0:01:24]} 23. Nc6 {[%clk 0:00:55]}  Qe8 {[%clk 0:01:24]} 24. a5 {[%clk 0:00:40]}  Na8 {[%clk 0:01:16]} 25. Qd2 {[%clk 0:00:20]}  Nb8 {[%clk 0:01:15]} 26. Na7 {[%clk 0:00:18]}  Rd8 {[%clk 0:01:09]} 27. Qc3 {[%clk 0:00:18]}  Qe7 {[%clk 0:01:02]} 28. Bf1 {[%clk 0:00:14]}  Rxd1 {[%clk 0:00:58]} 29. Rxd1 {[%clk 0:00:14]}  c6 {[%clk 0:00:58]} 30. Nxc6 {[%clk 0:00:10]}  Nxc6 {[%clk 0:00:58]} 31. Rd6 {[%clk 0:00:11]}  Nb8 {[%clk 0:00:33]} 32. Qxc5 {[%clk 0:00:10]}  Qc7 {[%clk 0:00:30]} 33. Qb4 {[%clk 0:00:06]}  Nc6 {[%clk 0:00:20]} 34. Qc3 {[%clk 0:00:06]}  Nxa5 {[%clk 0:00:14]} 35. Qxc7 {[%clk 0:00:05]}  Nxc7 {[%clk 0:00:15]} 36. Rxa6 {[%clk 0:00:06]}  Nxa6 {[%clk 0:00:15]} 0-1


[Site "https://www.chess.com"]

[Event "Titled Tuesday Blitz June 6 Early 2023"]
[White "Tomaszewski, Kacper"]
[Black "Domingo Nunez, Alejandro"]
[WhiteFideId "1127373"]
[BlackFideId "22245561"]
[WhiteElo "2211"]
[BlackElo "2291"]
[Result "0-1"]
[Round "7"]
[TimeControl "180+2"]
[Date "2023.06.06"]
[WhiteClock "0:00:01"]
[BlackClock "0:00:16"]
[Board "78"]

1. e4 {[%clk 0:03:00]}  g6 {[%clk 0:02:53]} 2. d4 {[%clk 0:02:55]}  Bg7 {[%clk 0:02:54]} 3. Nf3 {[%clk 0:02:54]}  c6 {[%clk 0:02:54]} 4. c4 {[%clk 0:02:48]}  d5 {[%clk 0:02:54]} 5. cxd5 {[%clk 0:02:46]}  cxd5 {[%clk 0:02:55]} 6. e5 {[%clk 0:02:45]}  Bg4 {[%clk 0:02:54]} 7. Nbd2 {[%clk 0:02:43]}  Nc6 {[%clk 0:02:53]} 8. h3 {[%clk 0:02:42]}  Bxf3 {[%clk 0:02:53]} 9. Nxf3 {[%clk 0:02:43]}  Nh6 {[%clk 0:02:47]} 10. Be3 {[%clk 0:02:30]}  Qb6 {[%clk 0:02:45]} 11. Bd3 {[%clk 0:02:20]}  Nf5 {[%clk 0:02:45]} 12. Bxf5 {[%clk 0:02:17]}  gxf5 {[%clk 0:02:46]} 13. O-O {[%clk 0:02:07]}  O-O {[%clk 0:02:46]} 14. Kh1 {[%clk 0:01:44]}  Nd8 {[%clk 0:02:32]} 15. Qd3 {[%clk 0:01:37]}  f6 {[%clk 0:02:15]} 16. e6 {[%clk 0:01:32]}  Qxe6 {[%clk 0:02:13]} 17. Rae1 {[%clk 0:01:25]}  Qd7 {[%clk 0:02:03]} 18. Nh4 {[%clk 0:01:13]}  e6 {[%clk 0:02:01]} 19. g4 {[%clk 0:01:12]}  Qf7 {[%clk 0:01:46]} 20. Rg1 {[%clk 0:01:05]}  fxg4 {[%clk 0:01:43]} 21. Rxg4 {[%clk 0:01:04]}  f5 {[%clk 0:01:42]} 22. Rg5 {[%clk 0:01:03]}  Kh8 {[%clk 0:01:39]} 23. Reg1 {[%clk 0:01:02]}  Bf6 {[%clk 0:01:37]} 24. Qe2 {[%clk 0:00:51]}  Bxg5 {[%clk 0:01:35]} 25. Bxg5 {[%clk 0:00:52]}  Nc6 {[%clk 0:01:36]} 26. Nf3 {[%clk 0:00:44]}  Qh5 {[%clk 0:01:09]} 27. Rg3 {[%clk 0:00:43]}  f4 {[%clk 0:01:08]} 28. Rg4 {[%clk 0:00:20]}  Qxh3+ {[%clk 0:00:34]} 29. Nh2 {[%clk 0:00:20]}  Rae8 {[%clk 0:00:31]} 30. f3 {[%clk 0:00:06]}  e5 {[%clk 0:00:28]} 31. Qf2 {[%clk 0:00:03]}  e4 {[%clk 0:00:22]} 32. Rh4 {[%clk 0:00:03]}  Qf5 {[%clk 0:00:22]} 33. Bxf4 {[%clk 0:00:02]}  exf3 {[%clk 0:00:20]} 34. Rg4 {[%clk 0:00:02]}  Re4 {[%clk 0:00:16]} 35. Rg5 {[%clk 0:00:01]}  Qxf4 {[%clk 0:00:16]} 0-1


[Site "https://www.chess.com"]

[Event "Titled Tuesday Blitz June 6 Early 2023"]
[White "Novikov, Evgenij"]
[Black "KorolDimitriy75"]
[WhiteFideId "4125380"]
[WhiteElo "2242"]
[BlackElo "2456"]
[Result "0-1"]
[Round "7"]
[TimeControl "180+2"]
[Date "2023.06.06"]
[WhiteClock "0:00:11"]
[BlackClock "0:00:05"]
[Board "83"]

1. e4 {[%clk 0:03:00]}  c5 {[%clk 0:02:59]} 2. Nf3 {[%clk 0:03:00]}  d6 {[%clk 0:02:59]} 3. d4 {[%clk 0:03:00]}  cxd4 {[%clk 0:03:00]} 4. Nxd4 {[%clk 0:03:01]}  Nf6 {[%clk 0:03:01]} 5. Nc3 {[%clk 0:03:01]}  g6 {[%clk 0:03:02]} 6. Be3 {[%clk 0:03:00]}  Bg7 {[%clk 0:03:02]} 7. f3 {[%clk 0:02:59]}  O-O {[%clk 0:03:03]} 8. Bc4 {[%clk 0:03:00]}  Nc6 {[%clk 0:03:03]} 9. Qd2 {[%clk 0:02:59]}  Bd7 {[%clk 0:03:03]} 10. Bb3 {[%clk 0:02:59]}  Qa5 {[%clk 0:03:04]} 11. O-O-O {[%clk 0:02:56]}  Rfc8 {[%clk 0:03:03]} 12. Kb1 {[%clk 0:02:56]}  Ne5 {[%clk 0:03:03]} 13. Nd5 {[%clk 0:02:44]}  Qxd2 {[%clk 0:03:03]} 14. Rxd2 {[%clk 0:02:38]}  Nxd5 {[%clk 0:03:01]} 15. Bxd5 {[%clk 0:02:37]}  Nc4 {[%clk 0:03:01]} 16. Bxc4 {[%clk 0:02:37]}  Rxc4 {[%clk 0:03:01]} 17. c3 {[%clk 0:02:32]}  b5 {[%clk 0:02:53]} 18. Nc2 {[%clk 0:02:26]}  f5 {[%clk 0:02:14]} 19. exf5 {[%clk 0:02:19]}  Bxf5 {[%clk 0:02:14]} 20. Kc1 {[%clk 0:02:19]}  a6 {[%clk 0:01:39]} 21. Re1 {[%clk 0:02:11]}  Kf7 {[%clk 0:01:34]} 22. Bd4 {[%clk 0:02:07]}  Bh6 {[%clk 0:01:08]} 23. Be3 {[%clk 0:02:07]}  Bg7 {[%clk 0:01:07]} 24. a3 {[%clk 0:02:07]}  Rac8 {[%clk 0:00:57]} 25. Kd1 {[%clk 0:02:05]}  a5 {[%clk 0:00:52]} 26. Rde2 {[%clk 0:01:01]}  b4 {[%clk 0:00:21]} 27. axb4 {[%clk 0:01:00]}  Bxc2+ {[%clk 0:00:19]} 28. Kxc2 {[%clk 0:01:01]}  axb4 {[%clk 0:00:20]} 29. Bg5 {[%clk 0:01:01]}  e5 {[%clk 0:00:13]} 30. Bd2 {[%clk 0:01:01]}  d5 {[%clk 0:00:12]} 31. Kd3 {[%clk 0:00:57]}  bxc3 {[%clk 0:00:10]} 32. bxc3 {[%clk 0:00:58]}  Bf6 {[%clk 0:00:08]} 33. Rb1 {[%clk 0:00:49]}  R8c7 {[%clk 0:00:06]} 34. Rb3 {[%clk 0:00:46]}  g5 {[%clk 0:00:06]} 35. Be1 {[%clk 0:00:43]}  h6 {[%clk 0:00:05]} 36. h3 {[%clk 0:00:42]}  Ke6 {[%clk 0:00:05]} 37. Bg3 {[%clk 0:00:42]}  Kf5 {[%clk 0:00:04]} 38. Bf2 {[%clk 0:00:39]}  e4+ {[%clk 0:00:04]} 39. fxe4+ {[%clk 0:00:39]}  dxe4+ {[%clk 0:00:05]} 40. Kc2 {[%clk 0:00:32]}  Rxc3+ {[%clk 0:00:05]} 41. Rxc3 {[%clk 0:00:32]}  Rxc3+ {[%clk 0:00:06]} 42. Kd2 {[%clk 0:00:33]}  Rd3+ {[%clk 0:00:06]} 43. Kc2 {[%clk 0:00:31]}  Rc3+ {[%clk 0:00:06]} 44. Kd2 {[%clk 0:00:31]}  Ra3 {[%clk 0:00:06]} 45. g4+ {[%clk 0:00:18]}  Kf4 {[%clk 0:00:04]} 46. Bc5 {[%clk 0:00:13]}  Ra2+ {[%clk 0:00:03]} 47. Kd1 {[%clk 0:00:13]}  Rxe2 {[%clk 0:00:02]} 48. Kxe2 {[%clk 0:00:14]}  Kg3 {[%clk 0:00:03]} 49. Bf8 {[%clk 0:00:14]}  Kxh3 {[%clk 0:00:02]} 50. Bxh6 {[%clk 0:00:14]}  Kxg4 {[%clk 0:00:03]} 51. Ke3 {[%clk 0:00:15]}  Kf5 {[%clk 0:00:03]} 52. Bf8 {[%clk 0:00:14]}  Be5 {[%clk 0:00:03]} 53. Bb4 {[%clk 0:00:13]}  Bf4+ {[%clk 0:00:04]} 54. Kf2 {[%clk 0:00:12]}  e3+ {[%clk 0:00:05]} 55. Kf3 {[%clk 0:00:12]}  g4+ {[%clk 0:00:05]} 56. Ke2 {[%clk 0:00:12]}  Ke4 {[%clk 0:00:06]} 57. Be1 {[%clk 0:00:12]}  g3 {[%clk 0:00:06]} 58. Bxg3 {[%clk 0:00:11]}  Bxg3 {[%clk 0:00:05]} 0-1


[Site "https://www.chess.com"]

[Event "Titled Tuesday Blitz June 6 Early 2023"]
[White "Yeritsyan, Hayk"]
[Black "Diaz Rosas, Julio Cesar"]
[WhiteFideId "13307320"]
[BlackFideId "5105099"]
[WhiteElo "2439"]
[BlackElo "2284"]
[Result "1-0"]
[Round "7"]
[TimeControl "180+2"]
[Date "2023.06.06"]
[WhiteClock "0:00:21"]
[BlackClock "0:00:09"]
[Board "87"]

1. Nf3 {[%clk 0:03:00]}  d5 {[%clk 0:02:56]} 2. d3 {[%clk 0:03:00]}  Nf6 {[%clk 0:02:56]} 3. Nbd2 {[%clk 0:02:59]}  g6 {[%clk 0:02:55]} 4. e4 {[%clk 0:02:59]}  Bg7 {[%clk 0:02:54]} 5. g3 {[%clk 0:02:57]}  O-O {[%clk 0:02:53]} 6. Bg2 {[%clk 0:02:56]}  c5 {[%clk 0:02:53]} 7. O-O {[%clk 0:02:57]}  Nc6 {[%clk 0:02:53]} 8. Re1 {[%clk 0:02:56]}  d4 {[%clk 0:02:49]} 9. a4 {[%clk 0:02:51]}  e5 {[%clk 0:02:47]} 10. Nc4 {[%clk 0:02:49]}  Re8 {[%clk 0:02:45]} 11. Rf1 {[%clk 0:02:35]}  b6 {[%clk 0:02:26]} 12. Nh4 {[%clk 0:02:26]}  Ba6 {[%clk 0:02:21]} 13. b3 {[%clk 0:02:20]}  Bxc4 {[%clk 0:02:08]} 14. bxc4 {[%clk 0:02:19]}  h6 {[%clk 0:02:04]} 15. Qe1 {[%clk 0:01:44]}  Nh7 {[%clk 0:01:48]} 16. f4 {[%clk 0:01:37]}  Nb4 {[%clk 0:01:35]} 17. Qf2 {[%clk 0:01:22]}  Qd7 {[%clk 0:01:20]} 18. f5 {[%clk 0:01:15]}  g5 {[%clk 0:01:20]} 19. f6 {[%clk 0:01:12]}  Bf8 {[%clk 0:01:02]} 20. Nf5 {[%clk 0:01:11]}  Qc6 {[%clk 0:00:48]} 21. a5 {[%clk 0:00:58]}  Re6 {[%clk 0:00:27]} 22. axb6 {[%clk 0:00:57]}  Qxb6 {[%clk 0:00:28]} 23. Ne7+ {[%clk 0:00:54]}  Kh8 {[%clk 0:00:20]} 24. Nd5 {[%clk 0:00:52]}  Nxd5 {[%clk 0:00:19]} 25. exd5 {[%clk 0:00:52]}  Rxf6 {[%clk 0:00:19]} 26. Qe2 {[%clk 0:00:52]}  Rxf1+ {[%clk 0:00:19]} 27. Qxf1 {[%clk 0:00:53]}  Kg7 {[%clk 0:00:17]} 28. Bd2 {[%clk 0:00:50]}  Bd6 {[%clk 0:00:15]} 29. Qf5 {[%clk 0:00:47]}  Rf8 {[%clk 0:00:15]} 30. Be4 {[%clk 0:00:43]}  Nf6 {[%clk 0:00:14]} 31. Bg2 {[%clk 0:00:39]}  Bb8 {[%clk 0:00:13]} 32. Rf1 {[%clk 0:00:37]}  Qd6 {[%clk 0:00:13]} 33. h4 {[%clk 0:00:36]}  gxh4 {[%clk 0:00:11]} 34. g4 {[%clk 0:00:31]}  Rg8 {[%clk 0:00:10]} 35. g5 {[%clk 0:00:30]}  Nh7 {[%clk 0:00:09]} 36. Qxf7+ {[%clk 0:00:29]}  Kh8 {[%clk 0:00:09]} 37. Be4 {[%clk 0:00:20]}  Nxg5 {[%clk 0:00:09]} 38. Bxg5 {[%clk 0:00:21]}  Rxg5+ {[%clk 0:00:09]} 39. Kh1 {[%clk 0:00:21]}  Qd8 {[%clk 0:00:09]} 40. Qh7# {[%clk 0:00:21]} 1-0


[Site "https://www.chess.com"]

[Event "Titled Tuesday Blitz June 6 Early 2023"]
[White "Czerw, Dawid"]
[Black "Alexikov, Alexander"]
[WhiteFideId "1145746"]
[BlackFideId "14103958"]
[WhiteElo "2144"]
[BlackElo "2186"]
[Result "0-1"]
[Round "7"]
[TimeControl "180+2"]
[Date "2023.06.06"]
[WhiteClock "0:00:04"]
[BlackClock "0:00:19"]
[Board "88"]

1. e4 {[%clk 0:03:00]}  c5 {[%clk 0:02:58]} 2. Nf3 {[%clk 0:03:01]}  d6 {[%clk 0:02:58]} 3. d4 {[%clk 0:03:01]}  Nf6 {[%clk 0:02:58]} 4. Nc3 {[%clk 0:03:01]}  cxd4 {[%clk 0:02:58]} 5. Nxd4 {[%clk 0:03:02]}  a6 {[%clk 0:02:58]} 6. h4 {[%clk 0:03:02]}  h5 {[%clk 0:02:57]} 7. Bg5 {[%clk 0:03:01]}  e6 {[%clk 0:02:56]} 8. Qe2 {[%clk 0:02:54]}  Nc6 {[%clk 0:02:50]} 9. Nxc6 {[%clk 0:02:53]}  bxc6 {[%clk 0:02:49]} 10. O-O-O {[%clk 0:02:53]}  Qa5 {[%clk 0:02:33]} 11. f4 {[%clk 0:02:42]}  e5 {[%clk 0:02:20]} 12. Qc4 {[%clk 0:02:16]}  Qb6 {[%clk 0:02:04]} 13. fxe5 {[%clk 0:02:05]}  dxe5 {[%clk 0:02:02]} 14. Na4 {[%clk 0:01:29]}  Qb5 {[%clk 0:01:50]} 15. Qb3 {[%clk 0:01:08]}  Qxb3 {[%clk 0:01:41]} 16. axb3 {[%clk 0:01:08]}  Be6 {[%clk 0:01:40]} 17. Bxf6 {[%clk 0:00:43]}  gxf6 {[%clk 0:01:39]} 18. Bc4 {[%clk 0:00:43]}  Bg4 {[%clk 0:01:26]} 19. Rdf1 {[%clk 0:00:36]}  Ke7 {[%clk 0:01:15]} 20. Nc5 {[%clk 0:00:29]}  a5 {[%clk 0:01:12]} 21. Kb1 {[%clk 0:00:27]}  Bh6 {[%clk 0:01:10]} 22. g3 {[%clk 0:00:25]}  Be3 {[%clk 0:01:09]} 23. Na4 {[%clk 0:00:21]}  Rhd8 {[%clk 0:01:06]} 24. Rh2 {[%clk 0:00:17]}  Rd6 {[%clk 0:00:58]} 25. Nc3 {[%clk 0:00:15]}  Rad8 {[%clk 0:00:56]} 26. Re1 {[%clk 0:00:11]}  Ba7 {[%clk 0:00:49]} 27. Rf1 {[%clk 0:00:05]}  Rd2 {[%clk 0:00:48]} 28. Rxd2 {[%clk 0:00:04]}  Rxd2 {[%clk 0:00:47]} 29. Bd3 {[%clk 0:00:02]}  Rg2 {[%clk 0:00:45]} 30. Re1 {[%clk 0:00:01]}  Rxg3 {[%clk 0:00:43]} 31. Rh1 {[%clk 0:00:02]}  Rg1+ {[%clk 0:00:42]} 32. Rxg1 {[%clk 0:00:02]}  Bxg1 {[%clk 0:00:42]} 33. Ne2 {[%clk 0:00:02]}  Bf2 {[%clk 0:00:41]} 34. c3 {[%clk 0:00:02]}  Bxh4 {[%clk 0:00:39]} 35. b4 {[%clk 0:00:02]}  axb4 {[%clk 0:00:39]} 36. cxb4 {[%clk 0:00:03]}  Bf2 {[%clk 0:00:37]} 37. b5 {[%clk 0:00:03]}  cxb5 {[%clk 0:00:35]} 38. Bxb5 {[%clk 0:00:04]}  h4 {[%clk 0:00:35]} 39. Nc3 {[%clk 0:00:04]}  Be6 {[%clk 0:00:32]} 40. Bf1 {[%clk 0:00:04]}  h3 {[%clk 0:00:32]} 41. b4 {[%clk 0:00:04]}  h2 {[%clk 0:00:31]} 42. Bg2 {[%clk 0:00:05]}  f5 {[%clk 0:00:30]} 43. b5 {[%clk 0:00:04]}  f4 {[%clk 0:00:27]} 44. Kc2 {[%clk 0:00:04]}  Kd6 {[%clk 0:00:27]} 45. Nd1 {[%clk 0:00:04]}  Bd4 {[%clk 0:00:26]} 46. Kd3 {[%clk 0:00:04]}  Bg4 {[%clk 0:00:22]} 47. Nc3 {[%clk 0:00:03]}  Bxc3 {[%clk 0:00:21]} 48. Kxc3 {[%clk 0:00:04]}  Kc5 {[%clk 0:00:22]} 49. b6 {[%clk 0:00:03]}  Kxb6 {[%clk 0:00:20]} 50. Kc4 {[%clk 0:00:04]}  f3 {[%clk 0:00:19]} 51. Bh1 {[%clk 0:00:04]}  f2 {[%clk 0:00:19]} 0-1


[Site "https://www.chess.com"]